Workbook

Sheet 1、公共预算收入
A1: 附表1
A2: 2019年市级一般公共预算收入调整表
C3: 单位：万元
A4: 科目 | B4: 项 目 | C4: 预算数 | D4: 调整预算数 | E4: 调整金额 | F4: 备注
B5: 一、市本级一般公共预算收入 | C5: =C6+C23 -> 122366 | D5: =D6+D23 -> 100889 | E5: -21477
A6: 101 | B6: （一）税收收入 | C6: =SUM(C7:C22) -> 88488 | D6: =SUM(D7:D22) -> 74489 | E6: =D6-C6 -> -13999
A7: 10101 | B7: 增值税 | C7: 34709 | D7: 23899 | E7: =D7-C7 -> -10810
A8: 10103 | B8: 营业税 | C8: 212 | E8: -212
A9: 10104 | B9: 企业所得税 | C9: 12071 | D9: 12000 | E9: -71
A10: 10106 | B10: 个人所得税 | C10: 7143 | D10: 3394 | E10: -3749
A11: 10107 | B11: 资源税 | C11: 0 | D11: 0 | E11: 0
A12: 10109 | B12: 城市维护建设税 | C12: 5750 | D12: 5152 | E12: -598
A13: 10110 | B13: 房产税 | C13: 2525 | D13: 2400 | E13: -125
A14: 10111 | B14: 印花税 | C14: 899 | D14: 940 | E14: 41
A15: 10112 | B15: 城镇土地使用税 | C15: 1234 | D15: 1042 | E15: -192
A16: 10113 | B16: 土地增值税 | C16: 6942 | D16: 11400 | E16: 4458
A17: 10114 | B17: 车船税 | C17: 4155 | D17: 4100 | E17: -55
A18: 10118 | B18: 耕地占用税 | C18: 9135 | D18: 5482 | E18: -3653
A19: 10119 | B19: 契税 | C19: 3677 | D19: 4600 | E19: 923
A20: 10120 | B20: 烟叶税 | C20: 0 | D20: 0 | E20: 0
A21: 10121 | B21: 环境保护税 | C21: 34 | D21: 35 | E21: 1
A22: 10199 | B22: 其他税收收入 | D22: 45 | E22: 45
A23: 103 | B23: （二）非税收入 | C23: =SUM(C24:C31) -> 33878 | D23: =SUM(D24:D31) -> 26400 | E23: -7478
A24: 10302 | B24: 专项收入 | C24: 8186 | D24: 4686 | E24: -3500
A25: 10304 | B25: 行政事业性收费收入 | C25: 9002 | D25: 5700 | E25: -3302
A26: 10305 | B26: 罚没收入 | C26: 5382 | D26: 6978 | E26: 1596
A27: 10306 | B27: 国有资本经营收入 | C27: 40 | D27: 0 | E27: -40
A28: 10307 | B28: 国有资源（资产）有偿使用收入 | C28: 8098 | D28: 6710 | E28: -1388
A29: 10308 | B29: 捐赠收入 | C29: 13 | D29: 2 | E29: -11
A30: 10309 | B30: 政府住房基金收入 | C30: 2397 | D30: 1779 | E30: -618
A31: 10399 | B31: 其他收入 | C31: 760 | D31: 545 | E31: -215
A33: 110 | B33: 二、转移性收入 | C33: =C34+C36+C71+C92+C95+C98+C103 -> 183586 | D33: =D34+D36+D71+D92+D95+D98+D103 -> 255880 | E33: =E34+E36+E71+E92+E95+E98+E103 -> 72294
A34: 11001 | B34: （一）返还性收入 | C34: =SUM(C35:C35) -> 19054 | D34: =C34+E34 -> 19054
A35: 1100199 | B35: 其它返还性收入 | C35: 19054 | D35: 19054
A36: 11002 | B36: （二）一般性转移支付收入 | C36: =SUM(C37:C70) -> 39630 | D36: =SUM(D37:D70) -> 54350 | E36: 14720
A37: 1100202 | B37: 均衡性转移支付收入 | C37: 2864 | D37: 2864
A38: 1100207 | B38: 县级基本财力保障机制奖补资金收入 | C38: 24220 | D38: 24220
A39: 1100208 | B39: 结算补助收入 | C39: -35917 | D39: -35917
A40: 1100299 | B40: 激励性转移支付收入 | C40: 2237 | D40: 2237
A41: 11002 | B41: 政策性转移支付收入 | C41: 9737 | D41: 9737
A42: 1100215 | B42: 成品油税费改革转移支付补助收入 | C42: 3370 | D42: 3370
A43: 1100220 | B43: 基层公检法司转移支付收入 | C43: 4207 | D43: 4207
A44: 1100221 | B44: 城乡义务教育转移支付收入 | C44: 502 | D44: 502
A45: 1100222 | B45: 基本养老金转移支付收入 | C45: 9684 | D45: 9684
A46: 1100225 | B46: 产粮大县奖励资金收入 | C46: 140 | D46: 140
A47: 1100226 | B47: 重点生态功能区转移支付收入 | C47: 0 | D47: 0
A48: 1100227 | B48: 固定数额补助收入 | C48: 13066 | D48: 13066
A49: 1100228 | B49: 革命老区转移支付收入 | C49: 195 | D49: 195
A50: 1100241 | B50: 一般公共服务共同财政事权转移支付收入 | D50: 0
A51: 1100242 | B51: 外交共同财政事权转移支付收入 | D51: 0
A52: 1100243 | B52: 国防支出共同财政事权转移支付收入 | D52: 0
A53: 1100244 | B53: 公共安全共同财政事权转移支付收入 | D53: 0
A54: 1100245 | B54: 教育共同财政事权转移支付收入 | C54: 748 | D54: 2748 | E54: 2000
A55: 1100246 | B55: 科学技术共同财政事权转移支付收入 | D55: 0
A56: 1100247 | B56: 文化旅游体育与传媒共同财政事权转移支付收入 | D56: 1800 | E56: 1800
A57: 1100248 | B57: 社会保障和就业共同财政事权转移支付收入 | C57: 2503 | D57: 2503
A58: 1100249 | B58: 卫生健康共同财政事权转移支付收入 | C58: 2074 | D58: 2074
A59: 1100250 | B59: 节能环保 共同财政事权转移支付收入 | D59: 4470 | E59: 4470
A60: 1100251 | B60: 城乡社区共同财政事权转移支付收入 | D60: 0
A61: 1100252 | B61: 农林水 共同财政事权转移支付收入 | D61: 579 | E61: 579
A62: 1100253 | B62: 交通运输 共同财政事权转移支付收入 | D62: 961 | E62: 961
A63: 1100254 | B63: 资源勘探信息等共同财政事权转移支付收入 | D63: 0
A64: 1100255 | B64: 商业服务业等 共同财政事权转移支付收入 | D64: 0
A65: 1100256 | B65: 金融共同财政事权转移支付收入 | D65: 0
A66: 1100257 | B66: 自然资源海洋气象等共同财政事权转移支付收入 | D66: 0
A67: 1100258 | B67: 住房保障共同财政事权转移支付收入 | D67: 4551 | E67: 4551
A68: 1100259 | B68: 粮油物资储备共同财政事权转移支付收入 | D68: 359 | E68: 359
A69: 1100260 | B69: 其他共同财政事权转移支付收入 | D69: 0
A70: 1100299 | B70: 其他一般性转移支付收入 | D70: 0
A71: 11003 | B71: （三）专项转移支付收入 | C71: =SUM(C72:C91) -> 57751 | D71: =SUM(D72:D91) -> 59463 | E71: 1712
A72: 1100301 | B72: 一般公共服务 | C72: 1542 | D72: =C72+E72 -> 1542
A73: 1100302 | B73: 外交 | D73: 0
A74: 1100303 | B74: 国防支出 | C74: 501 | D74: 501
A75: 1100304 | B75: 公共安全 | C75: 3246 | D75: 3246
A76: 1100305 | B76: 教育 | C76: 3765 | D76: 1765 | E76: -2000
A77: 1100306 | B77: 科学技术 | C77: 160 | D77: 250 | E77: 90
A78: 1100307 | B78: 文化旅游体育与传媒 | C78: 1232 | D78: 1232
A79: 1100308 | B79: 社会保障和就业 | C79: 4226 | D79: 4226
A80: 1100310 | B80: 卫生健康 | C80: 4144 | D80: 2070 | E80: -2074
A81: 1100311 | B81: 节能环保 | C81: 2096 | D81: 3596 | E81: 1500
A82: 1100312 | B82: 城乡社区 | C82: 562 | D82: 562
A83: 1100313 | B83: 农林水 | C83: 8987 | D83: 5408 | E83: -3579
A84: 1100314 | B84: 交通运输 | C84: 23872 | D84: 6411 | E84: -17461
A85: 1100315 | B85: 资源勘探信息等 | C85: 0 | D85: 4996 | E85: 4996
A86: 1100316 | B86: 商业服务业等 | C86: 150 | D86: 750 | E86: 600
A87: 1100317 | B87: 金融 | D87: 0
A88: 1100320 | B88: 自然资源海洋气象等 | C88: 313 | D88: 313
A89: 1100321 | B89: 住房保障 | C89: 2180 | D89: 19680 | E89: 17500
A90: 1100322 | B90: 粮油物资储备 | C90: 760 | D90: 2260 | E90: 1500
A91: 1100399 | B91: 其他收入 | C91: 15 | D91: 655 | E91: 640
A92: 11006 | B92: （四）下级上解收入 | C92: =C93+C94 -> 20000 | D92: 20000
A93: 1100601 | B93: 体制上解收入 | C93: 20000 | D93: 20000
A94: 1100602 | B94: 专项上解收入 | D94: 0
A95: 11008 | B95: （五）上年结转收入 | C95: =SUM(C96:C97) -> 26371 | D95: =SUM(D96:D97) -> 9345 | E95: -17026
B96: 争取中央、省补助或动用历年结转 | C96: 26371 | D96: 9345 | E96: =D96-C96 -> -17026
B97: 上年专项结转
A98: 11009 | B98: （六）调入资金 | C98: =C99 -> 20780 | D98: =D99 -> 41951 | E98: =E99 -> 21171
A99: 1100901 | B99: 调入一般公共预算资金 | C99: =SUM(C100:C101) -> 20780 | D99: =SUM(D100:D101) -> 41951 | E99: =SUM(E100:E101) -> 21171
A100: 110090102 | B100: 从政府性基金预算调入一般公共预算资金 | C100: 2161 | D100: 2161 | E100: =D100-C100 -> 0
A101: 110090103 | B101: 从其他资金调入一般公共预算资金 | C101: 18619 | D101: 39790 | E101: =D101-C101 -> 21171
B102: 其中：从预算稳定调节基金调入
A103: 110 | B103: （七）债务收入 | C103: =C104 -> 0 | D103: 51717 | E103: 51717
A104: 11011 | B104: 地方政府债务收入 | C104: 0 | D104: 51717 | E104: 51717
A105: 1101101 | B105: 一般债务收入 | C105: 0 | D105: 51717 | E105: 51717
A106: 110110101 | B106: 地方政府一般债券收入 | C106: =SUM(C107:C108) -> 0 | D106: =SUM(D107:D108) -> 51717 | E106: =SUM(E107:E108) -> 51717
B107: 新增债券 | D107: 26548 | E107: 26548
B108: 再融资债券 | D108: 25169 | E108: 25169
B109: 收 入 合 计 | C109: =C5+C33 -> 305952 | D109: =D5+D33 -> 356769 | E109: =E5+E33 -> 50817

Sheet 2、公共预算支出
A1: 附表2
A2: 2019年市级一般公共预算支出调整表
C3: 单位:万元
A4: 科目编码 | B4: 科目名称 | C4: 预算数 | D4: 调整 预算数 | E4: 调整金额 | F4: 备注
B6: 一、本级一般公共预算支出合计 | C6: 264495 | D6: 275258 | E6: 10763
A7: 201 | B7: 一般公共服务支出 | C7: 34004 | D7: 37559 | E7: 3554
A8: 20101 | B8: 人大事务 | C8: 851 | D8: 1102 | E8: 251
A9: 2010101 | B9: 行政运行 | C9: 553 | D9: 831 | E9: 278 | F9: 调增五项奖和调资资金
A10: 2010102 | B10: 一般行政管理事务 | C10: 118 | D10: 103 | E10: -15 | F10: 调减一般性支出10万，调剂专委会经费5万元至人大立法
A11: 2010104 | B11: 人大会议 | C11: 12 | D11: 12 | E11: 0
A12: 2010105 | B12: 人大立法 | C12: 5 | D12: 10 | E12: 5 | F12: 由专委会经费调整5万元至人大立法
A13: 2010106 | B13: 人大监督 | C13: 80 | D13: 80 | E13: 0
A14: 2010108 | B14: 代表工作 | C14: 83 | D14: 66 | E14: -17 | F14: 调整16.7万代表活动经费至转移性支出
A15: 20102 | B15: 政协事务 | C15: 715 | D15: 997 | E15: 282
A16: 2010201 | B16: 行政运行 | C16: 469 | D16: 762 | E16: 292 | F16: 调增五项奖和调资资金
A17: 2010202 | B17: 一般行政管理事务 | C17: 75 | D17: 65 | E17: -10 | F17: 调减一般性支出
A18: 2010204 | B18: 政协会议 | C18: 59 | D18: 59 | E18: 0
A19: 2010205 | B19: 委员视察 | C19: 51 | D19: 51 | E19: 0
A20: 2010206 | B20: 参政议政 | C20: 60 | D20: 60 | E20: 0
A21: 20103 | B21: 政府办公厅（室）及相关机构事务 | C21: 4500 | D21: 5545 | E21: 1045
A22: 2010301 | B22: 行政运行 | C22: 797 | D22: 1267 | E22: 470 | F22: 调增五项奖和调资资金404万，地方金融工作局机构改革经费17万
A23: 2010302 | B23: 一般行政管理事务 | C23: 140 | D23: 153 | E23: 12 | F23: 调增五项奖和调资资金12万，政府政研室机构改革经费12万
A24: 2010303 | B24: 机关服务 | C24: 708 | D24: 850 | E24: 143 | F24: 调增五项奖和调资资金
A25: 2010304 | B25: 专项服务 | C25: 442 | D25: 442 | E25: 0
A26: 2010305 | B26: 专项业务活动 | C26: 497 | D26: 551 | E26: 54 | F26: 调增市联络组和政研室公用
A27: 2010306 | B27: 政务公开审批 | C27: 598 | D27: 598 | E27: 0
A28: 2010308 | B28: 信访事务 | C28: 359 | D28: 469 | E28: 111 | F28: 调增五项奖和调资资金及信访局非税支出8.5万
A29: 2010350 | B29: 事业运行 | C29: 303 | D29: 304 | E29: 1 | F29: 调增调资资金
A30: 2010399 | B30: 其他政府办公厅（室）及相关机构事务支出 | C30: 656 | D30: 911 | E30: 254 | F30: 调增五项奖和调资资金及债券资金安排的神农云建设500万、法院机构改革经费30万，调减一般性支出320万、公共资源中心非税支出20万
A31: 20104 | B31: 发展与改革事务 | C31: 909 | D31: 1287 | E31: 378
A32: 2010401 | B32: 行政运行 | C32: 314 | D32: 526 | E32: 212 | F32: 调增五项奖和调资资金
A33: 2010402 | B33: 一般行政管理事务 | C33: 170 | D33: 152 | E33: -18 | F33: 调减一般性支出
A34: 2010404 | B34: 战略规划与实施 | D34: 60 | E34: 60 | F34: 调增预备费安排的襄阳经随州至合肥高铁规划研究经费
A35: 2010408 | B35: 物价管理 | C35: 362 | D35: 484 | E35: 122 | F35: 调增五项奖和调资资金
A36: 2010450 | B36: 事业运行 | C36: 22 | D36: 24 | E36: 2 | F36: 调增调资资金
A37: 2010499 | B37: 其他发展与改革事务支出 | C37: 40 | D37: 40 | E37: 0
A38: 20105 | B38: 统计信息事务 | C38: 470 | D38: 635 | E38: 165
A39: 2010501 | B39: 行政运行 | C39: 258 | D39: 431 | E39: 173 | F39: 调增五项奖和调资资金
A40: 2010502 | B40: 一般行政管理事务 | C40: 0 | D40: -8 | E40: -8 | F40: 调减一般性支出
A41: 2010505 | B41: 专项统计业务 | C41: 132 | D41: 132 | E41: 0
A42: 2010507 | B42: 专项普查活动 | C42: 80 | D42: 80 | E42: 0
A43: 2010550 | B43: 事业运行 | D43: 2 | E43: 2 | F43: 调增调资资金
A44: 20106 | B44: 财政事务 | C44: 1711 | D44: 1863 | E44: 152
A45: 2010601 | B45: 行政运行 | C45: 870 | D45: 1435 | E45: 565 | F45: 调增五项奖和调资资金
A46: 2010604 | B46: 预算改革业务 | C46: 213 | D46: 113 | E46: -100
A47: 2010605 | B47: 财政国库业务 | C47: 170 | D47: 70 | E47: -100 | F47: 调减专款
A48: 2010607 | B48: 信息化建设 | C48: 130 | D48: 130 | E48: 0
A49: 2010608 | B49: 财政委托业务支出 | C49: 67 | D49: 67 | E49: 0
A50: 2010650 | B50: 事业运行 | D50: 6 | E50: 6 | F50: 调增调资资金
A51: 2010699 | B51: 其他财政事务支出 | C51: 261 | D51: 41 | E51: -220 | F51: 调减一般性支出和专款
A52: 20107 | B52: 税收事务 | C52: 4000 | D52: 4000 | E52: 0
A53: 2010799 | B53: 其他税收事务支出 | C53: 4000 | D53: 4000 | E53: 0
A54: 20108 | B54: 审计事务 | C54: 771 | D54: 964 | E54: 193
A55: 2010801 | B55: 行政运行 | C55: 356 | D55: 560 | E55: 204 | F55: 调增五项奖和调资资金
A56: 2010802 | B56: 一般行政管理事务 | C56: 0 | D56: 0 | E56: 0
A57: 2010806 | B57: 信息化建设 | C57: 15 | D57: 15 | E57: 0
A58: 2010899 | B58: 其他审计事务支出 | C58: 400 | D58: 389 | E58: -11 | F58: 调减一般性支出
A59: 20109 | B59: 海关事务 | C59: 0 | D59: 100 | E59: 100
A60: 2010901 | B60: 行政运行 | D60: 100 | E60: 100 | F60: 调增随州海关机构改革经费100万
A61: 20110 | B61: 人力资源事务 | C61: 948 | D61: 1008 | E61: 60
A62: 2011001 | B62: 行政运行 | C62: 91 | D62: 141 | E62: 50 | F62: 调增五项奖和调资资金
A63: 2011008 | B63: 引进人才费用 | C63: 780 | D63: 780 | E63: 0
A64: 2011099 | B64: 其他人力资源事务支出 | C64: 77 | D64: 87 | E64: 10 | F64: 调增机构改革经费10万元
A65: 20111 | B65: 纪检监察事务 | C65: 6206 | D65: 7241 | E65: 1035
A66: 2011101 | B66: 行政运行 | C66: 1255 | D66: 2088 | E66: 833 | F66: 调增五项奖和调资资金
A67: 2011102 | B67: 一般行政管理事务 | C67: 2934 | D67: 2902 | E67: -32 | F67: 调减一般性支出
A68: 2011104 | B68: 大案要案查处 | C68: 1700 | D68: 1700 | E68: 0
A69: 2011199 | B69: 其他纪检监察事务支出 | C69: 317 | D69: 551 | E69: 234 | F69: 调整留置场所看护辅警工资150万至作风巡查办、调增巡查办公用84万
A70: 20113 | B70: 商贸事务 | C70: 579 | D70: 629 | E70: 50
A71: 2011301 | B71: 行政运行 | C71: 1 | D71: 1 | E71: 0
A72: 2011308 | B72: 招商引资 | C72: 578 | D72: 627 | E72: 50 | F72: 调增五项奖和调资资金
A73: 20123 | B73: 民族事务 | C73: 43 | D73: 72 | E73: 29
A74: 2012301 | B74: 行政运行 | C74: 43 | D74: 72 | E74: 29 | F74: 调增五项奖和调资资金
A75: 20125 | B75: 港澳台事务 | C75: 53 | D75: 74 | E75: 21
A76: 2012501 | B76: 行政运行 | C76: 32 | D76: 53 | E76: 21 | F76: 调增五项奖和调资资金
A77: 2012505 | B77: 台湾事务 | C77: 21 | D77: 21 | E77: 0
A78: 20126 | B78: 档案事务 | C78: 242 | D78: 366 | E78: 123
A79: 2012601 | B79: 行政运行 | C79: 143 | D79: 238 | E79: 95 | F79: 调增五项奖和调资资金
A80: 2012699 | B80: 其他档案事务支出 | C80: 99 | D80: 128 | E80: 29 | F80: 调增档案馆机构改革经费25.83万、非税支出3万
A81: 20128 | B81: 民主党派及工商联事务 | C81: 138 | D81: 175 | E81: 37
A82: 2012801 | B82: 行政运行 | C82: 62 | D82: 94 | E82: 32 | F82: 调增五项奖和调资资金
A83: 2012802 | B83: 一般行政管理事务 | C83: 30 | D83: 30 | E83: 0
A84: 2012804 | B84: 参政议政 | C84: 46 | D84: 51 | E84: 5 | F84: 调增公用经费5万元
A85: 20129 | B85: 群众团体事务 | C85: 599 | D85: 753 | E85: 154
A86: 2012901 | B86: 行政运行 | C86: 268 | D86: 439 | E86: 171 | F86: 调增五项奖和调资资金
A87: 2012902 | B87: 一般行政管理事务 | C87: 277 | D87: 260 | E87: -17 | F87: 调减一般性支出
A88: 2012999 | B88: 其他群众团体事务支出 | C88: 54 | D88: 54 | E88: 0
A89: 20131 | B89: 党委办公厅（室）及相关机构事务 | C89: 1953 | D89: 2338 | E89: 384
A90: 2013101 | B90: 行政运行 | C90: 638 | D90: 1113 | E90: 475 | F90: 调增五项奖和调资资金445万、机构改革30万
A91: 2013102 | B91: 一般行政管理事务 | F91: 调增机构改革经费
A92: 2013103 | B92: 机关服务 | F92: 调增机构改革经费
A93: 2013105 | B93: 专项业务 | C93: 1312 | D93: 1202 | E93: -110 | F93: 调增市委政研室和直属机关工委机构改革经费25.93万元，调减一般性支出136万元
A94: 2013150 | B94: 事业运行 | C94: 0 | D94: 3 | E94: 2 | F94: 调增调资资金
A95: 2013199 | B95: 其他党委办公厅（室）及相关机构事务支出 | C95: 3 | D95: 3 | E95: 0
A96: 20132 | B96: 组织事务 | C96: 413 | D96: 679 | E96: 266
A97: 2013201 | B97: 行政运行 | C97: 317 | D97: 497 | E97: 180 | F97: 调增五项奖和调资资金
A98: 2013202 | B98: 一般行政管理事务 | C98: 84 | D98: 73 | E98: -11 | F98: 调减一般性支出
A99: 2013204 | B99: 公务员事务 | D99: 37 | E99: 37 | F99: 调增组织部机构改革经费
A100: 2013299 | B100: 其他组织事务支出 | C100: 12 | D100: 72 | E100: 60 | F100: 调增主题教育公用60万
A101: 20133 | B101: 宣传事务 | C101: 425 | D101: 694 | E101: 269
A102: 2013301 | B102: 行政运行 | C102: 236 | D102: 396 | E102: 160 | F102: 调增五项奖和调资资金
A103: 2013302 | B103: 一般行政管理事务 | C103: 82 | D103: 71 | E103: -11 | F103: 调减一般性支出
A104: 2013399 | B104: 其他宣传事务支出 | C104: 108 | D104: 228 | E104: 120 | F104: 调增宣传部公用76万、预备费安排湖北日报《随州观察》43.8万
A105: 20134 | B105: 统战事务 | C105: 305 | D105: 365 | E105: 61
A106: 2013401 | B106: 行政运行 | C106: 74 | D106: 136 | E106: 63 | F106: 调增五项奖和调资资金
A107: 2013402 | B107: 一般行政管理事务 | C107: 153 | D107: 141 | E107: -12 | F107: 调减一般性支出
A108: 2013404 | B108: 宗教事务 | C108: 78 | D108: 78 | E108: 0
A109: 2013499 | B109: 其他统战事务支出 | F109: 调增机构改革经费10万元
A110: 20135 | B110: 对外联络事务 | C110: 0 | D110: 13 | E110: 13
A111: 2013502 | B111: 一般行政管理事务 | D111: 13 | E111: 13 | F111: 调增外事工委机构改革经费13万
A112: 20136 | B112: 其他共产党事务支出 | C112: 20 | D112: 20 | E112: 0
A113: 2013699 | B113: 其他共产党事务支出 | C113: 20 | D113: 20 | E113: 0
A114: 20138 | B114: 市场监督管理事务 | C114: 4052 | D114: 5263 | E114: 1211
A115: 2013801 | B115: 行政运行 | C115: 2249 | D115: 3453 | E115: 1204 | F115: 调增五项奖和调资资金
A116: 2013802 | B116: 一般行政管理事务 | C116: 190 | D116: 156 | E116: -34 | F116: 调减一般性支出
A117: 2013804 | B117: 市场监督管理专项 | C117: 624 | D117: 624 | E117: 0
A118: 2013805 | B118: 市场监管执法 | C118: 13 | D118: 13 | E118: 0
A119: 2013808 | B119: 信息化建设 | C119: 16 | D119: 16 | E119: 0
A120: 2013809 | B120: 市场监督管理技术支持 | C120: 60 | D120: 60 | E120: 0
A121: 2013850 | B121: 事业运行 | C121: 120 | D121: 187 | E121: 67 | F121: 调增五项奖和调资资金
A122: 2013899 | B122: 其他市场监督管理事务 | C122: 780 | D122: 754 | E122: -26 | F122: 调减公共检测中心非税支出26万
A123: 20199 | B123: 其他一般公共服务支出 | C123: 4101 | D123: 976 | E123: -3125
A124: 2019999 | B124: 其他一般公共服务支出 | C124: 4101 | D124: 976 | E124: -3125 | F124: 调减一般性支出255万，调减民防办非税支出2953万元，调增五项奖和调资资金83万
A125: 203 | B125: 国防支出 | C125: 768 | D125: 737 | E125: -31
A126: 20306 | B126: 国防动员 | C126: 768 | D126: 737 | E126: -31
A127: 2030603 | B127: 人民防空 | C127: 300 | D127: 300 | E127: 0
A128: 2030607 | B128: 民兵 | C128: 468 | D128: 437 | E128: -31 | F128: 调减工兵团支出31万
A129: 204 | B129: 公共安全支出 | C129: 23000 | D129: 24749 | E129: 1748
A130: 20401 | B130: 武装警察部队 | C130: 487 | D130: 487 | E130: 0
A131: 2040199 | B131: 其他武装警察部队支出 | C131: 487 | D131: 487 | E131: 0
A132: 20402 | B132: 公安 | C132: 21744 | D132: 23284 | E132: 1540
A133: 2040201 | B133: 行政运行 | C133: 11119 | D133: 15753 | E133: 4634 | F133: 调增五项奖和调资资金
A134: 2040203 | B134: 机关服务 | C134: 41 | D134: 41 | E134: 0
A135: 2040219 | B135: 信息化建设 | C135: 100 | D135: 100 | E135: 0
A136: 2040220 | B136: 执法办案 | C136: 6921 | D136: 5761 | E136: -1160 | F136: 调减公安局非税支出270万元、专款支出890万元
A137: 2040299 | B137: 其他公安支出 | C137: 3563 | D137: 1629 | E137: -1934 | F137: 调剂留置场所看护辅警工资150万至作风巡查，调减公安局非税支出1515万
A138: 20403 | B138: 国家安全 | C138: 100 | D138: 100 | E138: 0
A139: 2040304 | B139: 安全业务 | C139: 100 | D139: 100 | E139: 0
A140: 20406 | B140: 司法 | C140: 570 | D140: 755 | E140: 185
A141: 2040601 | B141: 行政运行 | C141: 310 | D141: 495 | E141: 185 | F141: 调增五项奖和调资资金186万，调减一般性支出5万
A142: 2040604 | B142: 基层司法业务 | C142: 15 | D142: 15 | E142: 0
A143: 2040605 | B143: 普法宣传 | C143: 15 | D143: 15 | E143: 0
A144: 2040607 | B144: 法律援助 | C144: 50 | D144: 50 | E144: 0
A145: 2040608 | B145: 国家统一法律职业资格考试 | C145: 2 | D145: 2 | E145: 0
A146: 2040609 | B146: 仲裁 | C146: 10 | D146: 10 | E146: 0
A147: 2040610 | B147: 社区矫正 | C147: 55 | D147: 55 | E147: 0
A148: 2040612 | B148: 法制建设 | C148: 53 | D148: 53 | E148: 0
A149: 2040699 | B149: 其他司法支出 | C149: 60 | D149: 60 | E149: 0
A150: 20409 | B150: 国家保密 | C150: 100 | D150: 123 | E150: 23
A151: 2040901 | B151: 行政运行 | C151: 36 | D151: 59 | E151: 23 | F151: 调增五项奖和调资资金
A152: 2040902 | B152: 一般行政管理事务 | C152: 14 | D152: 14 | E152: 0
A153: 2040905 | B153: 保密管理 | C153: 50 | D153: 50 | E153: 0
A154: 205 | B154: 教育支出 | C154: 26813 | D154: 28579 | E154: 1766
A155: 20501 | B155: 教育管理事务 | C155: 2057 | D155: 3735 | E155: 1679
A156: 2050101 | B156: 行政运行 | C156: 443 | D156: 603 | E156: 161 | F156: 调增五项奖和调资资金
A157: 2050102 | B157: 一般行政管理事务 | C157: 1614 | D157: 1632 | E157: 18 | F157: 调增调资资金28万，地方教育附加其他支出调剂20万为教研室中考命题经费，教研室280万调整为预算非税，电教馆20万、教育考试中心277万调整为专户收入，调减一般性支出13万
A158: 2050199 | B158: 其他教育管理事务支出 | D158: 1500 | E158: 1500 | F158: 调增债券资金安排的教育信息化建设资金1500万元
A159: 20502 | B159: 普通教育 | C159: 9690 | D159: 9960 | E159: 271
A160: 2050201 | B160: 学前教育 | C160: 673 | D160: 78 | E160: -595 | F160: 调增调资资金1万，铁路幼儿园34万调整为预算非税
A161: 2050204 | B161: 高中教育 | C161: 9006 | D161: 9872 | E161: 866 | F161: 调增调资资金866万，债券资金置换原本级安排的高中标准考场建设280万
A162: 2050299 | B162: 其他普通教育支出 | C162: 11 | D162: 11 | E162: 0
A163: 20503 | B163: 职业教育 | C163: 10240 | D163: 9865 | E163: -375
A164: 2050302 | B164: 中专教育 | C164: 1559 | D164: 1559 | E164: 0
A165: 2050303 | B165: 技校教育 | C165: 2779 | D165: 2921 | E165: 142 | F165: 调增调资资金
A166: 2050305 | B166: 高等职业教育 | C166: 5882 | D166: 5365 | E166: -517 | F166: 调增调资资金
A167: 2050399 | B167: 其他职业教育支出 | C167: 20 | D167: 20 | E167: 0
A168: 20508 | B168: 进修及培训 | C168: 2795 | D168: 3007 | E168: 212
A169: 2050802 | B169: 干部教育 | C169: 2795 | D169: 3007 | E169: 212 | F169: 调增五项奖和调资资金213万，债券资金置换原本级安排的党校教学设备购置2000万
A170: 20599 | B170: 其他教育支出 | C170: 2032 | D170: 2012 | E170: -20
A171: 2059999 | B171: 其他教育支出 | C171: 2032 | D171: 2012 | E171: -20 | F171: 地方教育附加其他支出调剂20万为教研室中考命题经费
A172: 206 | B172: 科学技术支出 | C172: 2831 | D172: 2946 | E172: 115
A173: 20601 | B173: 科学技术管理事务 | C173: 137 | D173: 217 | E173: 80
A174: 2060101 | B174: 行政运行 | C174: 137 | D174: 217 | E174: 80 | F174: 调增五项奖和调资资金81万，调减一般性支出3万
A175: 20604 | B175: 技术研究与开发 | C175: 141 | D175: 141 | E175: 0
A176: 2060403 | B176: 产业技术研究与开发 | C176: 141 | D176: 141 | E176: 0
A177: 20605 | B177: 科技条件与服务 | C177: 1000 | D177: 1000 | E177: 0
A178: 2060502 | B178: 技术创新服务体系 | C178: 1000 | D178: 1000 | E178: 0
A179: 20607 | B179: 科学技术普及 | C179: 139 | D179: 173 | E179: 35
A180: 2060701 | B180: 机构运行 | C180: 55 | D180: 89 | E180: 35 | F180: 调增五项奖和调资资金31万，调减一般性支出1万
A181: 2060702 | B181: 科普活动 | C181: 84 | D181: 84 | E181: 0
A182: 20699 | B182: 其他科学技术支出 | C182: 1415 | D182: 1415 | E182: 0
A183: 2069901 | B183: 科技奖励 | C183: 1400 | D183: 1400 | E183: 0
A184: 2069999 | B184: 其他科学技术支出 | C184: 15 | D184: 15 | E184: 0
A185: 207 | B185: 文化旅游体育与传媒支出 | C185: 7042 | D185: 8618 | E185: 1576
A186: 20701 | B186: 文化和旅游 | C186: 2771 | D186: 3284 | E186: 513
A187: 2070101 | B187: 行政运行 | C187: 397 | D187: 651 | E187: 254 | F187: 调增五项奖和调资资金
A188: 2070102 | B188: 一般行政管理事务 | C188: 25 | D188: 3 | E188: -22 | F188: 调减一般性支出
A189: 2070104 | B189: 图书馆 | C189: 302 | D189: 322 | E189: 20 | F189: 调增调资资金7万，图书馆非税支出13万
A190: 2070107 | B190: 艺术表演团体 | C190: 20 | D190: 20 | E190: 0
A191: 2070108 | B191: 文化活动 | C191: 65 | D191: 65 | E191: 0
A192: 2070110 | B192: 文化和旅游交流与合作 | C192: 1300 | D192: 1300 | E192: 0
A193: 2070111 | B193: 文化创作与保护 | C193: 50 | D193: 50 | E193: 0
A194: 2070112 | B194: 文化和旅游市场管理 | C194: 100 | D194: 159 | E194: 60 | F194: 调增调资资金6万，文化执法支队非税支出45万
A195: 2070113 | B195: 旅游宣传 | D195: 200 | E195: 200 | F195: 调增预备费安排的央视文化旅游宣传广告费200万
A196: 2070199 | B196: 其他文化和旅游支出 | C196: 511 | D196: 512 | E196: 1 | F196: 调增调资资金
A197: 20702 | B197: 文物 | C197: 1373 | D197: 2397 | E197: 1024
A198: 2070204 | B198: 文物保护 | C198: 576 | D198: 974 | E198: 398 | F198: 调增调资资金5万，文旅局机构改革经费23万，调增专款支出370万
A199: 2070205 | B199: 博物馆 | C199: 797 | D199: 1009 | E199: 212 | F199: 调增调资资金27万，专款支出185万
A200: 2070206 | B200: 历史名城与古迹 | D200: 414 | E200: 414 | F200: 调增债券资金安排的曾随文化遗址和擂鼓墩考古公园规划建设414万
A201: 20703 | B201: 体育 | C201: 100 | D201: 103 | E201: 3
... 360 more rows

Sheet 3、政府性基金收入
A1: 附表4
A2: 市本级2019年政府性基金预算支出调整情况表
E3: 单位：万元
A4: 科目 | B4: 项 目 | C4: 预算数 | D4: 调整 预算数 | E4: 调整金额 | F4: 备注
A5: 207 | B5: 一、文化旅游体育与传媒支出 | C5: =C6 -> 0 | D5: =D6 -> 150 | E5: =D5-C5 -> 150
A6: 20709 | B6: 旅游发展基金支出 | C6: =C7 -> 0 | D6: =D7 -> 150 | E6: 150
A7: 2070904 | B7: 地方旅游开发项目补助 | D7: 150 | E7: 150
A8: 208 | B8: 二、社会保障和就业支出 | C8: =C9 -> 251 | D8: =D9 -> 251 | E8: 0
A9: 20822 | B9: 大中型水库移民后期扶持基金支出 | C9: =SUM(C10:C11) -> 251 | D9: =SUM(D10:D11) -> 251 | E9: 0
A10: 2082201 | B10: 移民补助 | C10: 251 | D10: 251 | E10: 0
A11: 2082202 | B11: 基础设施建设和经济发展 | E11: 0
A12: 2082299 | B12: 其他大中型水库移民后期扶持资金支出 | E12: 0
A13: 212 | B13: 三、城乡社区支出 | C13: =C14+C25+C26+C30+C33+C35 -> 161281 | D13: =D14+D25+D26+D30+D33+D35 -> 212281 | E13: 51000
A14: 21208 | B14: 国有土地使用权出让收入及对应专项债务收入安排的支出 | C14: =SUM(C15:C24) -> 152801 | D14: =SUM(D15:D24) -> 152801 | E14: 0
A15: 2120801 | B15: 征地和拆迁补偿支出 | C15: 35672 | D15: 35672 | E15: 0
A16: 2120802 | B16: 土地开发支出 | C16: 7644 | D16: 7644 | E16: 0
A17: 2120803 | B17: 城市建设支出 | C17: 62892 | D17: 62892 | E17: 0
A18: 2120804 | B18: 农村基础设施建设支出 | C18: 1000 | D18: 1000 | E18: 0
A19: 2120805 | B19: 补助被征地农民支出 | C19: 20384 | D19: 20384 | E19: 0
A20: 2120806 | B20: 土地出让业务支出 | C20: 3328 | D20: 3328 | E20: 0
A21: 2120807 | B21: 廉租住房支出 | E21: 0
A22: 2120810 | B22: 棚户区改造支出 | C22: 3000 | D22: 3000 | E22: 0
A23: 2120811 | B23: 公共租赁住房支出 | C23: 1316 | D23: 1316 | E23: 0
A24: 2120899 | B24: 其他国有土地使用权出让收入安排的支出 | C24: 17565 | D24: 17565 | E24: 0
A25: 21211 | B25: 农业土地开发资金安排的支出 | C25: 164 | D25: 164 | E25: 0
A26: 21213 | B26: 城市基础设施配套费安排的支出 | C26: =SUM(C27:C29) -> 5116 | D26: =SUM(D27:D29) -> 5116 | E26: 0
A27: 2121301 | B27: 城市公共设施 | C27: 5116 | D27: 5116 | E27: 0
A28: 2121302 | B28: 城市环境卫生 | E28: 0
A29: 2121399 | B29: 其他城市基础设施配套费安排的支出 | C29: 0 | E29: 0
A30: 21214 | B30: 污水处理费及对应专项债务收入安排的支出 | C30: =SUM(C31:C32) -> 3200 | D30: =SUM(D31:D32) -> 3200 | E30: 0
A31: 2121401 | B31: 污水处理设施建设和运营 | C31: 3200 | D31: 3200 | E31: 0
A32: 2121499 | B32: 其他污水处理费安排的支出 | E32: 0
A33: 21215 | B33: 土地储备专项债券收入安排的支出 | C33: =C34 -> 0 | D33: =D34 -> 20000 | E33: 20000
A34: 2121599 | B34: 其他土地储备专项债券收入安排的支出 | D34: 20000 | E34: 20000
A35: 21216 | B35: 棚户区改造专项债券收入安排的支出 | C35: =C36 -> 0 | D35: =D36 -> 31000 | E35: 31000
A36: 2121699 | B36: 其他棚户区改造专项债券收入安排的支出 | D36: 31000
A37: 214 | B37: 四、交通运输支出 | C37: =C38 -> 0 | D37: =D38 -> 0 | E37: 0
A38: 21462 | B38: 车辆通行费安排的支出 | C38: =C39 -> 0 | E38: 0
A39: 2146299 | B39: 其他车辆通行费安排的支出 | E39: 0
A40: 215 | B40: 五、资源勘探信息等支出 | C40: =C41 -> 0 | D40: =D41 -> 0 | E40: 0
A41: 21562 | B41: 农网还贷资金支出 | C41: 0 | E41: 0
A42: 2156202 | B42: 地方农网还贷资金支出 | E42: 0
A43: 216 | B43: 六、商业服务业等支出 | C43: =C44 -> 0 | D43: =D44 -> 0 | E43: 0
A44: 21660 | B44: 旅游发展基金支出 | C44: =C45 -> 0 | D44: =D45 -> 0 | E44: 0
A45: 2166004 | B45: 地方旅游开发项目补助 | E45: 0
A46: 229 | B46: 七、其他支出 | C46: =C49+C47 -> 3142 | D46: =D49+D47 -> 3142 | E46: 0
A47: 22904 | B47: 其他政府性基金及对应专项债务收入安排的支出 | C47: =C48 -> 585 | D47: =D48 -> 585 | E47: 0
A48: 2290101 | B48: 其他政府性基金安排的支出 | C48: 585 | D48: 585 | E48: 0
A49: 22960 | B49: 彩票公益金安排的支出 | C49: =SUM(C50:C54) -> 2557 | D49: =SUM(D50:D54) -> 2557 | E49: 0
A50: 2296002 | B50: 用于社会福利的彩票公益金支出 | C50: 1585 | D50: 1585 | E50: 0
A51: 2296003 | B51: 用于体育事业的彩票公益金支出 | C51: 850 | D51: 850 | E51: 0
A52: 2296005 | B52: 用于红十字事业的彩票公益金支出 | E52: 0
A53: 2296006 | B53: 用于残疾人事业的彩票公益金支出 | C53: 122 | D53: 122 | E53: 0
A54: 2296013 | B54: 用于城乡医疗求助的的彩票公益金支出 | E54: 0
A55: 232 | B55: 八、债务付息支出 | C55: =C56 -> 5450 | D55: =D56 -> 5721 | E55: 271
A56: 23204 | B56: 地方政府专项债务付息支出 | C56: =SUM(C57:C58) -> 5450 | D56: =SUM(D57:D58) -> 5721 | E56: 271
A57: 2320411 | B57: 国有土地使用权出让金债务付息支出 | C57: 5450 | D57: 5721 | E57: 271
A58: 2320431 | B58: 土地储备专项债券付息支出 | E58: 0
A59: 233 | B59: 九、债务发行费用支出 | C59: =C60 -> 22 | D59: =D60 -> 5 | E59: -17
A60: 23304 | B60: 地方政府专项债务发行费用支出 | C60: =SUM(C61:C62) -> 22 | D60: =SUM(D61:D62) -> 5 | E60: -17
A61: 2330411 | B61: 棚户区改造专项债券发行费用支出 | C61: 22 | D61: 5 | E61: -17
A62: 2330431 | B62: 土地储备专项债券发行费用支出 | E62: 0
B63: 支出合计 | C63: =C8+C13+C37+C40+C43+C46+C55+C59+C5 -> 170146 | D63: =D8+D13+D37+D40+D43+D46+D55+D59+D5 -> 221550 | E63: 51404
A64: 230 | B64: 转移性支出 | C64: =SUM(C65:C68) -> 18532 | D64: =SUM(D65:D68) -> 15971 | E64: -2561
A65: 23004 | B65: 政府性基金转移支付 | E65: 0
A66: 23008 | B66: 调出资金 | C66: 4000 | D66: 4000 | E66: 0
A67: 23009 | B67: 年终结余 | C67: 14532 | D67: 11971 | E67: -2561
A68: 23011 | B68: 债务转贷支出 | E68: 0
A69: 231 | B69: 债务还本支出 | C69: =C70 -> 0 | D69: =D70 -> 0 | E69: =D69-C69 -> 0
A70: 23104 | B70: 地方政府专项债务还本支出 | E70: 0
B71: 支出总计 | C71: =C63+C64+C69 -> 188678 | D71: =D63+D64+D69 -> 237521 | E71: 48843

Sheet 4、政府性基金支出
A1: 附表4
A2: 市本级2019年政府性基金预算支出调整情况表
E3: 单位：万元
A4: 科目 | B4: 项 目 | C4: 预算数 | D4: 调整 预算数 | E4: 调整金额 | F4: 备注
A5: 207 | B5: 一、文化旅游体育与传媒支出 | C5: =C6 -> 0 | D5: =D6 -> 150 | E5: =D5-C5 -> 150
A6: 20709 | B6: 旅游发展基金支出 | C6: =C7 -> 0 | D6: =D7 -> 150 | E6: 150
A7: 2070904 | B7: 地方旅游开发项目补助 | D7: 150 | E7: 150
A8: 208 | B8: 二、社会保障和就业支出 | C8: =C9 -> 251 | D8: =D9 -> 251 | E8: 0
A9: 20822 | B9: 大中型水库移民后期扶持基金支出 | C9: =SUM(C10:C11) -> 251 | D9: =SUM(D10:D11) -> 251 | E9: 0
A10: 2082201 | B10: 移民补助 | C10: 251 | D10: 251 | E10: 0
A11: 2082202 | B11: 基础设施建设和经济发展 | E11: 0
A12: 2082299 | B12: 其他大中型水库移民后期扶持资金支出 | E12: 0
A13: 212 | B13: 三、城乡社区支出 | C13: =C14+C25+C26+C30+C33+C35 -> 161281 | D13: =D14+D25+D26+D30+D33+D35 -> 212281 | E13: 51000
A14: 21208 | B14: 国有土地使用权出让收入及对应专项债务收入安排的支出 | C14: =SUM(C15:C24) -> 152801 | D14: =SUM(D15:D24) -> 152801 | E14: 0
A15: 2120801 | B15: 征地和拆迁补偿支出 | C15: 35672 | D15: 35672 | E15: 0
A16: 2120802 | B16: 土地开发支出 | C16: 7644 | D16: 7644 | E16: 0
A17: 2120803 | B17: 城市建设支出 | C17: 62892 | D17: 62892 | E17: 0
A18: 2120804 | B18: 农村基础设施建设支出 | C18: 1000 | D18: 1000 | E18: 0
A19: 2120805 | B19: 补助被征地农民支出 | C19: 20384 | D19: 20384 | E19: 0
A20: 2120806 | B20: 土地出让业务支出 | C20: 3328 | D20: 3328 | E20: 0
A21: 2120807 | B21: 廉租住房支出 | E21: 0
A22: 2120810 | B22: 棚户区改造支出 | C22: 3000 | D22: 3000 | E22: 0
A23: 2120811 | B23: 公共租赁住房支出 | C23: 1316 | D23: 1316 | E23: 0
A24: 2120899 | B24: 其他国有土地使用权出让收入安排的支出 | C24: 17565 | D24: 17565 | E24: 0
A25: 21211 | B25: 农业土地开发资金安排的支出 | C25: 164 | D25: 164 | E25: 0
A26: 21213 | B26: 城市基础设施配套费安排的支出 | C26: =SUM(C27:C29) -> 5116 | D26: =SUM(D27:D29) -> 5116 | E26: 0
A27: 2121301 | B27: 城市公共设施 | C27: 5116 | D27: 5116 | E27: 0
A28: 2121302 | B28: 城市环境卫生 | E28: 0
A29: 2121399 | B29: 其他城市基础设施配套费安排的支出 | C29: 0 | E29: 0
A30: 21214 | B30: 污水处理费及对应专项债务收入安排的支出 | C30: =SUM(C31:C32) -> 3200 | D30: =SUM(D31:D32) -> 3200 | E30: 0
A31: 2121401 | B31: 污水处理设施建设和运营 | C31: 3200 | D31: 3200 | E31: 0
A32: 2121499 | B32: 其他污水处理费安排的支出 | E32: 0
A33: 21215 | B33: 土地储备专项债券收入安排的支出 | C33: =C34 -> 0 | D33: =D34 -> 20000 | E33: 20000
A34: 2121599 | B34: 其他土地储备专项债券收入安排的支出 | D34: 20000 | E34: 20000
A35: 21216 | B35: 棚户区改造专项债券收入安排的支出 | C35: =C36 -> 0 | D35: =D36 -> 31000 | E35: 31000
A36: 2121699 | B36: 其他棚户区改造专项债券收入安排的支出 | D36: 31000
A37: 214 | B37: 四、交通运输支出 | C37: =C38 -> 0 | D37: =D38 -> 0 | E37: 0
A38: 21462 | B38: 车辆通行费安排的支出 | C38: =C39 -> 0 | E38: 0
A39: 2146299 | B39: 其他车辆通行费安排的支出 | E39: 0
A40: 215 | B40: 五、资源勘探信息等支出 | C40: =C41 -> 0 | D40: =D41 -> 0 | E40: 0
A41: 21562 | B41: 农网还贷资金支出 | C41: 0 | E41: 0
A42: 2156202 | B42: 地方农网还贷资金支出 | E42: 0
A43: 216 | B43: 六、商业服务业等支出 | C43: =C44 -> 0 | D43: =D44 -> 0 | E43: 0
A44: 21660 | B44: 旅游发展基金支出 | C44: =C45 -> 0 | D44: =D45 -> 0 | E44: 0
A45: 2166004 | B45: 地方旅游开发项目补助 | E45: 0
A46: 229 | B46: 七、其他支出 | C46: =C49+C47 -> 3142 | D46: =D49+D47 -> 3142 | E46: 0
A47: 22904 | B47: 其他政府性基金及对应专项债务收入安排的支出 | C47: =C48 -> 585 | D47: =D48 -> 585 | E47: 0
A48: 2290101 | B48: 其他政府性基金安排的支出 | C48: 585 | D48: 585 | E48: 0
A49: 22960 | B49: 彩票公益金安排的支出 | C49: =SUM(C50:C54) -> 2557 | D49: =SUM(D50:D54) -> 2557 | E49: 0
A50: 2296002 | B50: 用于社会福利的彩票公益金支出 | C50: 1585 | D50: 1585 | E50: 0
A51: 2296003 | B51: 用于体育事业的彩票公益金支出 | C51: 850 | D51: 850 | E51: 0
A52: 2296005 | B52: 用于红十字事业的彩票公益金支出 | E52: 0
A53: 2296006 | B53: 用于残疾人事业的彩票公益金支出 | C53: 122 | D53: 122 | E53: 0
A54: 2296013 | B54: 用于城乡医疗求助的的彩票公益金支出 | E54: 0
A55: 232 | B55: 八、债务付息支出 | C55: =C56 -> 5450 | D55: =D56 -> 5721 | E55: 271
A56: 23204 | B56: 地方政府专项债务付息支出 | C56: =SUM(C57:C58) -> 5450 | D56: =SUM(D57:D58) -> 5721 | E56: 271
A57: 2320411 | B57: 国有土地使用权出让金债务付息支出 | C57: 5450 | D57: 5721 | E57: 271
A58: 2320431 | B58: 土地储备专项债券付息支出 | E58: 0
A59: 233 | B59: 九、债务发行费用支出 | C59: =C60 -> 22 | D59: =D60 -> 5 | E59: -17
A60: 23304 | B60: 地方政府专项债务发行费用支出 | C60: =SUM(C61:C62) -> 22 | D60: =SUM(D61:D62) -> 5 | E60: -17
A61: 2330411 | B61: 棚户区改造专项债券发行费用支出 | C61: 22 | D61: 5 | E61: -17
A62: 2330431 | B62: 土地储备专项债券发行费用支出 | E62: 0
B63: 支出合计 | C63: =C8+C13+C37+C40+C43+C46+C55+C59+C5 -> 170146 | D63: =D8+D13+D37+D40+D43+D46+D55+D59+D5 -> 221550 | E63: 51404
A64: 230 | B64: 转移性支出 | C64: =SUM(C65:C68) -> 18532 | D64: =SUM(D65:D68) -> 15971 | E64: -2561
A65: 23004 | B65: 政府性基金转移支付 | E65: 0
A66: 23008 | B66: 调出资金 | C66: 4000 | D66: 4000 | E66: 0
A67: 23009 | B67: 年终结余 | C67: 14532 | D67: 11971 | E67: -2561
A68: 23011 | B68: 债务转贷支出 | E68: 0
A69: 231 | B69: 债务还本支出 | C69: =C70 -> 0 | D69: =D70 -> 0 | E69: =D69-C69 -> 0
A70: 23104 | B70: 地方政府专项债务还本支出 | E70: 0
B71: 支出总计 | C71: =C63+C64+C69 -> 188678 | D71: =D63+D64+D69 -> 237521 | E71: 48843

Sheet 5、国有资本经营预算收入
A1: 附表5
A2: 市本级2019年国有资本经营预算收入表
A3: 编制单位：市国资委 市财政局 | C3: 单位：万元
A4: 科目 | B4: 项 目 | C4: 预算数 | D4: 调整预算数 | E4: 调整金额 | F4: 备注
A5: 1030601 | B5: 一、利润收入 | C5: 2092 | D5: =D7+D8+D9+D10+D11+D12+D13+D14 -> 5971 | E5: =E7+E8+E9+E10+E11+E12+E13+E14 -> 3879
A6: 103060134 | B6: 其他国有资本经营预算企业利润收入 | C6: =SUM(C7:C14) -> 2092 | D6: 5971 | E6: 3879
B7: 随州市金盾押运公司 | C7: 20 | D7: 60 | E7: =D7-C7 -> 40 | F7: 补缴2015-2017年44.81万元。2018年调整-4.47万元
B8: 随州市城投集团 | C8: 439 | D8: 337 | E8: =D8-C8 -> -102 | F8: 按企业上年度审计后利润额调整
B9: 随州市城建投公司 | C9: 1173 | D9: 5061 | E9: 3888 | F9: 补缴2017年2604.49万元。18年调整1283.44万元
B10: 随州市高新投 | C10: 100 | D10: 147 | E10: 47
B11: 随州市交通投资建设有限公司 | C11: 72 | D11: 82 | E11: 10
B12: 随州市金控集团 | C12: 184 | D12: 228 | E12: 44
B13: 随州市建设设计院 | C13: 4 | D13: 20 | E13: 16
B14: 其他 | C14: 100 | D14: 36 | E14: -64
A15: 1030602 | B15: 二、股利、股息收入 | C15: 0 | D15: 438 | E15: 438
A16: 103060202 | B16: 国有控股公司股利、股息收入
A17: 103060203 | B17: 国有参股公司股利、股息收入 | D17: 438 | E17: 438 | F17: 齐星车身股息
A18: 1030603 | B18: 三、产权转让收入
A19: 103060304 | B19: 国有股权、股份转让收入
A20: 1030604 | B20: 四、清算收入
A21: 1030698 | B21: 五、其他国有资本经营收入
B22: 市 级 国 有 资 本 经 营 收 入合计 | C22: 2092 | D22: 5971 | E22: 3879
A23: 11005 | B23: 国有资本经营预算转移支付收入 | C23: 0
B24: 收 入 总计 | C24: 2092 | D24: 5971 | E24: 3879

Sheet 6、国有资本经营预算支出
A1: 附表6
A2: 市本级2019年国有资本经营预算支出表
A3: 编制单位：市国资委 市财政局 | C3: 单位：万元
A4: 科目 | B4: 项 目 | C4: 预算数 | D4: 调整 预算数 | E4: 调整 金额 | F4: 备注
A5: 208 | B5: 一、社会保障和就业支出 | C5: 0 | D5: =E5-C5 -> 0
A6: 20804 | B6: 补充全国社会保障基金 | C6: 0 | D6: =E6-C6 -> 0
A7: 2080451 | B7: 国有资本经营预算补充社保基金支出 | C7: 0 | D7: 0
A8: 223 | B8: 二、国有资本经营预算支出 | C8: =C9+C10 -> 1695 | D8: =C8+E8 -> 5335 | E8: 3640
A9: 22301 | B9: 解决历史遗留问题及改革成本支出 | C9: 0 | D9: =C9+E9 -> 0
A10: 22399 | B10: 其他国有资本经营预算支出 | C10: =C11 -> 1695 | D10: 5335 | E10: 3640
A11: 2239901 | B11: 其他国有资本经营预算支出 | C11: 1695 | D11: 5335 | E11: 3640 | F11: 用于城投、建投、交投、高新投高铁站前广场、城市综合管网、政务路等城市公共建设。国资监管费用，增加金控集团政府资本金、金盾押运公司购置车辆费、建筑设计院购置费、不可预见支出等。
B12: 市 级 国 有 资 本 经 营 支 出合计 | C12: =C5+C8 -> 1695 | D12: =D5+D8 -> 5335 | E12: 3640
A13: 230 | B13: 转移性支出 | C13: =C14 -> 397 | D13: =C13+E13 -> 636 | E13: 239
A14: 23008 | B14: 调出资金 | C14: =C15 -> 397 | D14: =C14+E14 -> 636 | E14: 239
A15: 2300803 | B15: 国有资本经营预算调出资金 | C15: 397 | D15: 636 | E15: 239 | F15: 根据国务院规定，从国有资本经营预算收入中提取19%用于补充市级社保基金
B16: 支出总计 | C16: =C12+C13 -> 2092 | D16: =D12+D13 -> 5971 | E16: 3879

Sheet 7、社保基金收入
A1: 附表7
A2: 市本级2019年社会保险基金预算收入调整情况表
E3: 单位：万元
A4: 收入科目 | B4: 收入项目 | C4: 预算数 | D4: 调整预算数 | E4: 调整金额 | F4: 备注
B5: 市本级社会保险基金收入合计 | C5: =C6+C30+C26+C14+C34+C18+C10+C22 -> 81952 | D5: =D6+D30+D26+D14+D34+D18+D10+D22 -> 85952 | E5: =D5-C5 -> 4000
A6: 10201 | B6: 一、企业职工基本养老保险基金收入 | C6: =C7+C8+C9 -> 37937 | D6: 42937 | E6: =D6-C6 -> 5000
A7: 1020101 | B7: 其中：企业职工基本养老保险保险费收入 | C7: 26231 | D7: 31231 | E7: 5000
A8: 1020102 | B8: 企业职工基本养老保险基金财政补贴收入 | C8: 9456 | D8: 9456 | E8: 0
A9: 1020103 | B9: 企业职工基本养老保险基金利息收入 | C9: 2250 | D9: 2250 | E9: 0
A10: 10202 | B10: 二、失业保险基金收入 | C10: =C11+C12+C13 -> 1137 | D10: =D11+D12+D13 -> 1137 | E10: 0
A11: 1200201 | B11: 其中：失业保险费收入 | C11: 1050 | D11: 1050 | E11: 0
A12: 1200202 | B12: 失业保险基金财政补贴收入 | E12: 0
A13: 1200203 | B13: 失业保险基金利息收入 | C13: 87 | D13: 87 | E13: 0
A14: 10203 | B14: 三、城镇职工基本医疗保险基金收入 | C14: =C15+C16+C17 -> 17136 | D14: =D15+D16+D17 -> 17136 | E14: 0
A15: 1020301 | B15: 其中：城镇职工基本医疗保险费收入 | C15: 16526 | D15: 16526 | E15: 0
A16: 1020302 | B16: 城镇职工基本医疗保险基金 财政补贴收入 | E16: 0
A17: 1020303 | B17: 城镇职工基本医疗保险基金利息收入 | C17: 610 | D17: 610 | E17: 0
A18: 10204 | B18: 四、工伤保险基金收入 | C18: =C19+C20+C21 -> 1228 | D18: =D19+D20+D21 -> 1228 | E18: 0
A19: 1020401 | B19: 其中：工伤保险费收入 | C19: 1160 | D19: 1160 | E19: 0
A20: 1020402 | B20: 工伤保险基金 财政补贴收入 | E20: 0
A21: 1020403 | B21: 工伤保险基金利息收入 | C21: 68 | D21: 68 | E21: 0
A22: 10205 | B22: 五、生育保险基金收入 | C22: =C23+C24+C25 -> 688 | D22: =D23+D24+D25 -> 688 | E22: 0
A23: 1020501 | B23: 其中：生育保险费收入 | C23: 633 | D23: 633 | E23: 0
A24: 1020502 | B24: 生育保险基金财政补贴收入 | E24: 0
A25: 1020503 | B25: 生育保险基金利息收入 | C25: 55 | D25: 55 | E25: 0
A26: 10210 | B26: 六、城乡居民基本养老保险基金收入 | C26: =C27+C28+C29 -> 0 | D26: =D27+D28+D29 -> 0 | E26: 0
A27: 1021001 | B27: 其中：城乡居民基本养老保险费收入 | E27: 0
A28: 1021002 | B28: 城乡居民基本养老保险基金财政补贴收入 | E28: 0
A29: 1021003 | B29: 城乡居民基本养老保险基金利息收入 | E29: 0
A30: 10211 | B30: 七、机关事业单位基本养老保险基金收入 | C30: =C31+C32+C33 -> 23826 | D30: 22826 | E30: -1000
A31: 1021101 | B31: 其中：机关事业单位基本养老保险费收入 | C31: 20826 | D31: 19826 | E31: -1000
A32: 1021102 | B32: 机关事业单位基本养老保险基金财政补贴收入 | C32: 2755 | D32: 2755 | E32: 0
A33: 1021103 | B33: 机关事业单位基本养老保险基金利息收入 | C33: 245 | D33: 245 | E33: 0
A34: 10212 | B34: 八、城乡居民基本医疗保险基金收入
A35: 1021201 | B35: 其中：城乡居民基本医疗保险费收入
A36: 1021202 | B36: 城乡居民基本医疗保险基金 财政补贴收入
A37: 1021203 | B37: 城乡居民基本医疗保险基金利息收入

Sheet 8、社保基金支出
A1: 附表8
A2: 市本级2019年社会保险基金预算支出调整情况表
F3: 单位：万元
A4: 支出科目 | B4: 支出项目 | C4: 预算数 | D4: 调整预算数 | E4: 调整金额 | F4: 备注
B5: 市本级社会保险基金支出合计 | C5: =C6+C24+C21+C12+C27+C15+C9+C18 -> 72077 | D5: =D6+D24+D21+D12+D27+D15+D9+D18 -> 83777 | E5: =D5-C5 -> 11700
A6: 20901 | B6: 一、企业职工基本养老保险基金支出 | C6: =SUM(C7:C8) -> 32681 | D6: 37681 | E6: =D6-C6 -> 5000
A7: 2090101 | B7: 其中：基本养老金支出 | C7: 31627 | D7: 36627 | E7: 5000
A8: 2090199 | B8: 其他基本养老保险基金支出 | C8: 1054 | D8: 1054 | E8: 0
A9: 20902 | B9: 二、失业保险基金支出 | C9: 1373 | D9: 2073 | E9: 700
A10: 2090201 | B10: 其中：失业保险金支出 | C10: 1321 | D10: 2021 | E10: 700 | F10: 省政府文件规定计提职业技能提升资金支出
A11: 2090299 | B11: 其他失业保险基金支出 | C11: 52 | D11: 52 | E11: 0
A12: 20903 | B12: 三、城镇职工基本医疗保险基金支出 | C12: 12537 | D12: 16537 | E12: 4000
A13: 2090301 | B13: 其中：基本医疗保险待遇支出 | C13: 12527 | D13: 16527 | E13: 4000
A14: 2090399 | B14: 其他基本医疗保险基金支出 | C14: 10 | D14: 10 | E14: 0
A15: 20904 | B15: 四、工伤保险基金支出 | C15: =SUM(C16:C17) -> 985 | D15: =SUM(D16:D17) -> 985 | E15: 0
A16: 2090401 | B16: 其中：工伤保险待遇支出 | C16: 985 | D16: 985 | E16: 0
A17: 2090499 | B17: 其他工伤保险基金支出 | E17: 0
A18: 20905 | B18: 五、生育保险基金支出 | C18: 1451 | D18: 1451 | E18: 0
A19: 2090501 | B19: 其中：生育保险待遇支出 | C19: 1451 | D19: 1451 | E19: 0
A20: 2090599 | B20: 其他生育保险基金支出 | E20: 0
A21: 20910 | B21: 六、城乡居民基本养老保险基金支出 | E21: 0
A22: 2091001 | B22: 其中：基本养老金支出 | E22: 0
A23: 2091099 | B23: 其他基本养老保险基金支出 | E23: 0
A24: 20911 | B24: 七、机关事业单位基本养老保险基金支出 | C24: 23050 | D24: 25050 | E24: 2000
A25: 2091101 | B25: 其中：基本养老金支出 | C25: 22850 | D25: 24850 | E25: 2000
A26: 2091199 | B26: 其他基本养老保险基金支出 | C26: 200 | D26: 200 | E26: 0
A27: 20912 | B27: 八、城乡居民基本医疗保险基金支出
A28: 2091201 | B28: 其中：基本医疗保险待遇支出
A29: 2091299 | B29: 其他基本养老保险基金支出

Sheet 9、社保基金结余
A1: 附表9
A2: 市本级2019年社会保险基金预算结余调整情况表
D3: 单位：万元
A4: 项 目 | B4: 预算数 | C4: 调整预算数 | D4: 调整金额 | E4: 备注
A5: 市本级社会保险基金年末滚存结余 | B5: =SUM(B6:B13) -> 136273 | C5: =SUM(C6:C13) -> 128573 | D5: -7700
A6: 一、企业职工基本养老保险金年末滚存结余 | B6: 77206 | C6: 77206
A7: 二、失业保险基金年末滚存结余 | B7: 2597 | C7: 1897 | D7: -700
A8: 三、城镇职工基本医疗保险基金年末滚存结余 | B8: 41400 | C8: 37400 | D8: -4000
A9: 四、工伤保险基金年末滚存结余 | B9: 4926 | C9: 4926
A10: 五、生育保险基金年末滚存结余 | B10: 2063 | C10: 2063
A11: 六、城乡居民基本养老保险基金年末结余
A12: 七、机关事业单位基本养老保险基本年末滚存结余 | B12: 8081 | C12: 5081 | D12: -3000
A13: 八、城乡居民基本医疗保险基金支出
